bitfinex-derivatives/quotes_BTCF0:USTF0_20250427
["timestamp","ask_amount","ask_price","bid_price","bid_amount"]
[1745723877214,0.20580463,94507.0,94506.0,0.273859]
[1745723878123,0.08580463,94507.0,94506.0,0.273859]
[1745723879316,0.20580463,94507.0,94506.0,0.273859]
[1745723879717,0.20580463,94507.0,94506.0,0.303859]
[1745723888830,0.20580463,94507.0,94506.0,0.273859]
[1745723890731,0.17480463,94507.0,94506.0,0.273859]
[1745723894136,0.05480463,94507.0,94506.0,0.273859]
[1745723895232,0.17480463,94507.0,94506.0,0.273859]
[1745723897035,0.17480463,94507.0,94501.0,0.0304]
[1745723897036,1.42047663,94507.0,94486.0,0.32538034]
[1745723897225,1.42047663,94507.0,94478.0,0.06752]
[1745723897226,0.3608,94487.0,94478.0,0.06752]
[1745723897428,0.0949,94486.0,94479.0,0.0301]
[1745723897629,0.2116172,94481.0,94480.0,0.211616]
[1745723898042,0.2116172,94480.0,94479.0,0.211619]
[1745723898236,0.2751172,94480.0,94479.0,0.211619]
[1745723899035,0.0635,94480.0,94479.0,0.211619]
[1745723900537,0.0645,94480.0,94479.0,0.214619]
[1745723901836,0.4253,94480.0,94479.0,0.214619]
[1745723904933,0.4253,94480.0,94479.0,0.247319]
[1745723910233,0.2116419,94469.0,94468.0,0.0015878]
[1745723910433,0.2116575,94462.0,94461.0,0.0327]
[1745723910840,0.2116575,94462.0,94461.0,0.2443598]
[1745723911540,0.0529154,94461.0,94450.0,0.0302]
[1745723911732,0.5724665,94458.0,94453.0,0.052919]
[1745723912234,0.6924665,94458.0,94453.0,0.052919]
[1745723912646,0.6924665,94458.0,94457.0,0.21696209]
[1745723913031,0.7049112,94458.0,94457.0,0.21696209]
[1745723913335,0.5849112,94458.0,94457.0,0.21696209]
[1745723913934,0.5849112,94458.0,94457.0,0.00529339]
[1745723914139,0.7069112,94458.0,94457.0,0.00529339]
[1745723915135,0.5869112,94458.0,94457.0,0.00529339]
[1745723916137,0.3461112,94458.0,94457.0,0.00529339]
[1745723916333,0.7150268,94458.0,94457.0,0.00529339]
[1745723916535,0.7150268,94458.0,94457.0,0.24746209]
[1745723916736,0.5033603,94458.0,94457.0,0.24746209]
[1745723917249,0.4451603,94458.0,94457.0,0.24746209]
[1745723917635,0.6568268,94458.0,94457.0,0.24746209]
[1745723921247,0.4160268,94458.0,94457.0,0.24746209]
[1745723921753,0.7768268,94458.0,94457.0,0.24746209]
[1745723922143,0.4451603,94458.0,94457.0,0.24746209]
[1745723923148,0.0843603,94458.0,94457.0,0.24746209]
[1745723923348,0.4451603,94458.0,94457.0,0.24746209]
[1745723930253,0.6568268,94458.0,94457.0,0.24746209]
[1745723931063,0.6568268,94458.0,94457.0,0.03579339]
[1745723931255,0.6568268,94458.0,94457.0,0.00529339]
[1745723933360,0.21168,94452.0,94451.0,0.0331]
[1745723934156,0.27488,94452.0,94451.0,0.0331]
[1745723934862,0.27588,94452.0,94451.0,0.0341]
[1745723940367,0.27588,94452.0,94451.0,0.001]
[1745723944170,0.63668,94452.0,94451.0,0.001]
[1745723946176,0.2116912,94447.0,94446.0,0.0306]
[1745723947173,0.2117091,94439.0,94438.0,0.2441113]
[1745723947365,0.5725091,94439.0,94438.0,0.2441113]
[1745723947566,0.5725091,94439.0,94438.0,0.0324]
[1745723947762,0.5725091,94439.0,94416.0,0.06732]
[1745723947763,0.211727,94431.0,94416.0,0.06732]
[1745723947975,0.2117338,94429.0,94428.0,0.2117333]
[1745723948168,0.2117338,94429.0,94428.0,0.0324]
[1745723948674,0.3064338,94429.0,94428.0,0.0324]
[1745723949674,0.2117338,94428.0,94424.0,0.0302]
[1745723949865,0.2117338,94428.0,94425.0,0.031]
[1745723950066,0.2745338,94428.0,94426.0,0.211737]
[1745723950267,0.2745338,94428.0,94426.0,0.0329]
[1745723950671,0.2745338,94428.0,94427.0,0.03629507]
[1745723951071,0.2745338,94428.0,94427.0,0.06659507]
[1745723951466,0.2755338,94428.0,94427.0,0.06659507]
[1745723951777,0.2755338,94428.0,94427.0,0.27833107]
[1745723953570,0.2755338,94428.0,94427.0,0.06659507]
[1745723955871,0.2755338,94428.0,94427.0,0.27833107]
[1745723956075,0.2755338,94428.0,94427.0,0.39833107]
[1745723956267,0.2755338,94428.0,94427.0,0.18659507]
[1745723956479,0.2755338,94428.0,94427.0,0.39833107]
[1745723956675,0.2755338,94428.0,94427.0,0.18659507]
[1745723956871,0.2755338,94428.0,94427.0,0.39833107]
[1745723957071,0.2447338,94428.0,94427.0,0.39833107]
[1745723957268,0.2447338,94428.0,94427.0,0.18659507]
[1745723957976,0.6055338,94428.0,94427.0,0.18659507]
[1745723962276,0.6055338,94428.0,94427.0,0.06659507]
[1745723963681,0.2447338,94428.0,94427.0,0.06659507]
[1745723963883,0.6055338,94428.0,94427.0,0.06659507]
[1745723965588,0.2117495,94421.0,94420.0,0.031]
[1745723966079,0.2117495,94421.0,94420.0,0.151]
[1745723966485,0.2757495,94421.0,94420.0,0.151]
[1745723967083,0.2757495,94421.0,94420.0,0.12]
[1745723967287,0.2117517,94420.0,94419.0,0.00269]
[1745723967486,0.2117517,94420.0,94407.0,0.0325]
[1745723967487,0.466708,94420.0,94400.0,0.10105932]
[1745723967790,0.2117921,94402.0,94401.0,0.0325]
[1745723968193,0.2117921,94402.0,94401.0,0.1525]
[1745723968691,0.2117921,94402.0,94401.0,0.2138]
[1745723968995,0.2117921,94402.0,94401.0,0.4255943]
[1745723969489,0.22383803,94402.0,94401.0,0.4255943]
[1745723970688,0.02004593,94402.0,94401.0,0.4255943]
[1745723971187,0.05014593,94402.0,94401.0,0.4255943]
[1745723971386,0.26193803,94402.0,94401.0,0.4255943]
[1745723971692,0.26994008,94402.0,94401.0,0.4255943]
[1745723972782,0.05814798,94402.0,94401.0,0.4255943]
[1745723976795,0.41894798,94402.0,94401.0,0.4255943]
[1745723981297,0.05814798,94402.0,94401.0,0.4255943]
[1745723981499,0.41894798,94402.0,94401.0,0.4255943]
[1745723984089,0.05814798,94402.0,94401.0,0.4255943]
[1745723989696,0.01600205,94402.0,94401.0,0.7863943]
[1745723989891,0.008,94402.0,94401.0,0.7863943]
[1745723990298,0.02019259,94402.0,94401.0,0.7863943]
[1745723990497,0.008,94402.0,94401.0,0.7863943]
[1745723991400,0.02037626,94402.0,94401.0,0.7863943]
[1745723991804,0.008,94402.0,94401.0,0.7863943]
[1745723993201,0.02020951,94402.0,94401.0,0.7863943]
[1745723994908,0.008,94402.0,94401.0,0.7863943]
[1745723998695,0.0402,94402.0,94401.0,0.7863943]
[1745724004113,0.0402,94402.0,94401.0,0.4255943]
[1745724004298,0.0727,94402.0,94401.0,0.7863943]
[1745724005699,0.0727,94402.0,94401.0,0.3317943]
[1745724005905,0.1057,94402.0,94401.0,0.3317943]
[1745724006103,0.1057,94402.0,94401.0,0.2117943]
[1745724008813,0.0987,94402.0,94401.0,0.2117943]
[1745724011219,0.0647,94402.0,94401.0,0.3622943]
[1745724011413,0.0657,94402.0,94401.0,0.3622943]
[1745724012615,0.0657,94402.0,94401.0,0.3317943]
[1745724013908,0.0657,94402.0,94401.0,0.3637943]
[1745724015612,0.0332,94402.0,94401.0,0.3961943]
[1745724016019,0.0326,94407.0,94401.0,0.3961943]
[1745724016020,0.3608,94416.0,94415.0,0.2117629]
[1745724016613,0.37318067,94416.0,94415.0,0.2117629]
[1745724017207,0.37318067,94416.0,94415.0,0.3317629]
[1745724017811,0.37618067,94416.0,94415.0,0.3317629]
[1745724019707,0.38423839,94416.0,94415.0,0.3317629]
[1745724019911,0.41613839,94416.0,94415.0,0.3317629]
[1745724021909,0.05533839,94416.0,94415.0,0.3317629]
[1745724032223,0.05533839,94416.0,94415.0,0.3633629]
[1745724039333,0.08713839,94416.0,94415.0,0.3633629]
[1745724040031,0.08713839,94416.0,94415.0,0.3317629]
[1745724041733,0.08713839,94416.0,94415.0,0.12]
[1745724041940,0.29889909,94416.0,94415.0,0.12]
[1745724043330,0.2117705,94412.0,94410.0,0.2117736]
[1745724043530,0.064,94411.0,94410.0,0.2117736]
[1745724044937,0.066,94411.0,94410.0,0.2117736]
[1745724045131,0.066,94411.0,94410.0,0.3317736]
[1745724046226,0.066,94411.0,94410.0,0.3635736]
[1745724047632,0.4268,94411.0,94410.0,0.3635736]
[1745724048236,0.066,94411.0,94410.0,0.3635736]
[1745724053038,0.2777719,94411.0,94410.0,0.3635736]
[1745724053239,0.066,94411.0,94410.0,0.3635736]
[1745724055039,0.066,94411.0,94410.0,0.3317736]
[1745724059536,0.066,94411.0,94410.0,0.3646736]
[1745724069440,0.2777719,94411.0,94410.0,0.3646736]
[1745724072450,0.6385719,94411.0,94410.0,0.3646736]
[1745724075354,0.2777719,94411.0,94410.0,0.3646736]
[1745724075552,0.6385719,94411.0,94410.0,0.3646736]
[1745724075749,0.2777719,94411.0,94410.0,0.3646736]
[1745724076062,0.6385719,94411.0,94410.0,0.3646736]
[1745724079352,0.6385719,94411.0,94410.0,0.3317736]
[1745724079552,0.6385719,94411.0,94410.0,0.12]
[1745724080146,0.2777719,94411.0,94410.0,0.12]
[1745724080449,0.6385719,94411.0,94410.0,0.12]
[1745724082159,0.2117831,94406.0,94405.0,0.0332]
[1745724082554,0.2117876,94404.0,94403.0,0.2117893]
[1745724083058,0.2117898,94403.0,94402.0,0.0332]
[1745724083257,0.6362898,94403.0,94402.0,0.0332]
[1745724084057,0.6362898,94403.0,94402.0,0.1532]
[1745724085255,0.6372898,94403.0,94402.0,0.1542]
[1745724087051,0.2764898,94403.0,94402.0,0.0342]
[1745724087260,0.6372898,94403.0,94402.0,0.0342]
[1745724088163,0.6372898,94403.0,94402.0,0.1542]
[1745724089459,0.2764898,94403.0,94402.0,0.1542]
[1745724089854,0.6372898,94403.0,94402.0,0.1542]
[1745724096064,0.2764898,94403.0,94402.0,0.1542]
[1745724096257,0.6372898,94403.0,94402.0,0.1542]
[1745724097361,0.2117943,94401.0,94400.0,0.10105932]
[1745724098663,0.2117943,94401.0,94400.0,0.10205932]
[1745724098664,0.2127943,94401.0,94400.0,0.10205932]
[1745724099458,0.5735943,94401.0,94400.0,0.10205932]
[1745724102068,0.211801,94398.0,94394.0,0.0324]
[1745724102666,0.933401,94398.0,94394.0,0.0324]
[1745724102866,0.997701,94398.0,94394.0,0.0324]
[1745724104565,0.276101,94398.0,94394.0,0.0324]
[1745724104870,0.998701,94398.0,94394.0,0.0324]
[1745724111074,0.998701,94398.0,94397.0,0.12529675]
[1745724112177,0.998701,94398.0,94397.0,0.18699675]
[1745724112766,0.277101,94398.0,94397.0,0.18699675]
[1745724112972,0.277101,94398.0,94397.0,0.39880005]
[1745724112973,0.3618,94398.0,94397.0,0.39880005]
[1745724119167,0.001,94398.0,94397.0,0.39880005]
[1745724124671,0.001,94398.0,94397.0,0.75960005]
[1745724129970,0.033,94408.0,94407.0,0.2117809]
[1745724130271,0.0315,94412.0,94411.0,0.2117719]
[1745724130479,0.2432696,94412.0,94411.0,0.2117719]
[1745724130873,0.2432696,94412.0,94411.0,0.2768719]
[1745724131379,0.0345,94412.0,94411.0,0.3968719]
[1745724132479,0.0345,94412.0,94411.0,0.1851]
[1745724132675,0.2462696,94412.0,94411.0,0.1526]
[1745724132873,0.3102696,94412.0,94411.0,0.1526]
[1745724135678,0.3102696,94412.0,94411.0,0.12]
[1745724140080,0.2117966,94400.0,94399.0,0.0313]
[1745724140586,0.2118133,94393.0,94391.0,0.06712]
[1745724140785,0.0942,94392.0,94391.0,0.2789366]
[1745724141087,0.3060145,94392.0,94391.0,0.18712]
[1745724141293,0.6668145,94392.0,94391.0,0.18712]
[1745724143696,0.6678145,94392.0,94391.0,0.18712]
[1745724145884,0.3070145,94392.0,94391.0,0.18712]
[1745724151996,0.3070145,94392.0,94391.0,0.3989368]
[1745724153587,0.3070145,94392.0,94391.0,0.18712]
[1745724155592,0.3070145,94392.0,94391.0,0.21942]
[1745724156898,0.3070145,94392.0,94391.0,0.4312368]
[1745724157404,0.3070145,94392.0,94391.0,0.21942]
[1745724157804,0.3070145,94392.0,94391.0,0.4312368]
[1745724158401,0.3070145,94392.0,94391.0,0.21942]
[1745724159403,0.3070145,94392.0,94391.0,0.12]
[1745724159702,0.2118414,94380.0,94379.0,0.00158934]
[1745724160204,0.2118414,94380.0,94379.0,0.12158934]
[1745724160412,0.2421414,94380.0,94379.0,0.12158934]
[1745724161006,0.2747414,94380.0,94379.0,0.12158934]
[1745724161207,0.2757414,94380.0,94379.0,0.12158934]
[1745724162505,0.28732496,94380.0,94379.0,0.12158934]
[1745724163504,0.28732496,94380.0,94379.0,0.12]
[1745724164115,0.2118504,94376.0,94375.0,0.0328]
[1745724165017,0.0619,94376.0,94375.0,0.0328]
[1745724165223,0.0629,94376.0,94375.0,0.0328]
[1745724166017,0.2747504,94376.0,94375.0,0.0328]
[1745724166220,0.0629,94376.0,94375.0,0.3646527]
[1745724166414,0.0321,94376.0,94375.0,0.3646527]
[1745724166717,0.001,94376.0,94375.0,0.3646527]
[1745724180025,0.0313,94376.0,94375.0,0.3646527]
[1745724180927,0.0313,94376.0,94375.0,0.3947527]
[1745724183223,0.2431504,94376.0,94375.0,0.12]
[1745724183831,0.2740504,94376.0,94375.0,0.12]
[1745724185221,0.0622,94376.0,94359.0,0.0315]
[1745724185423,0.0622,94376.0,94361.0,0.0315]
[1745724185424,0.2118825,94362.0,94361.0,0.0315]
[1745724186224,0.2746825,94362.0,94361.0,0.1515]
[1745724187330,0.2826825,94362.0,94361.0,0.1515]
[1745724188131,0.29043929,94362.0,94361.0,0.1515]
[1745724188627,0.29043929,94362.0,94361.0,0.12]
[1745724189133,0.0529738,94356.0,94343.0,0.0529806]
[1745724189336,0.4262,94355.0,94349.0,0.211909]
[1745724189522,0.4262,94355.0,94350.0,0.0323]
[1745724189523,0.0850749,94354.0,94350.0,0.0323]
[1745724189725,0.2119066,94351.0,94350.0,0.0323]
[1745724190736,0.2209066,94351.0,94350.0,0.0323]
[1745724191236,0.2209066,94351.0,94350.0,0.1523]
[1745724193134,0.2835066,94351.0,94350.0,0.1523]
[1745724193932,0.2835066,94351.0,94350.0,0.3642088]
[1745724194138,0.0716,94351.0,94350.0,0.3642088]
[1745724194341,0.2835066,94351.0,94350.0,0.3642088]
[1745724194727,0.2835066,94351.0,94350.0,0.1523]
[1745724194934,0.2835066,94351.0,94350.0,0.12]
[1745724195134,0.211929,94341.0,94340.0,0.00105999]
[1745724195533,0.211929,94341.0,94340.0,0.21299129]
[1745724195734,0.274829,94341.0,94340.0,0.00105999]
[1745724195938,0.274829,94341.0,94340.0,0.21299129]
[1745724196131,0.274829,94341.0,94340.0,0.33299129]
[1745724196335,0.275829,94341.0,94340.0,0.12105999]
[1745724196540,0.28694577,94341.0,94340.0,0.33299129]
[1745724197442,0.07501677,94341.0,94340.0,0.33299129]
[1745724197836,0.28694577,94341.0,94340.0,0.33299129]
[1745724199041,0.07501677,94341.0,94340.0,0.33299129]
[1745724199443,0.28694577,94341.0,94340.0,0.33299129]
[1745724203445,0.2119358,94338.0,94337.0,0.00530012]
[1745724206236,0.9335358,94338.0,94337.0,0.00530012]
[1745724206440,0.9345358,94338.0,94337.0,0.00530012]
[1745724208148,0.7226,94338.0,94337.0,0.33723812]
[1745724208450,0.9345358,94338.0,94337.0,0.12530012]
[1745724209252,0.3618,94338.0,94337.0,0.39983812]
[1745724211050,0.5737358,94338.0,94337.0,0.39983812]
[1745724211347,0.6043358,94338.0,94337.0,0.39983812]
[1745724213350,0.6043358,94338.0,94337.0,0.18790012]
[1745724213646,0.6043358,94338.0,94337.0,0.39983812]
[1745724213850,0.2435358,94338.0,94337.0,0.39983812]
[1745724215146,0.2435358,94338.0,94337.0,0.15660012]
[1745724215347,0.2435358,94338.0,94337.0,0.12530012]
[1745724221142,0.2435358,94338.0,94337.0,0.00530012]
[1745724221949,0.6043358,94338.0,94337.0,0.00530012]
[1745724222147,0.6043358,94338.0,94337.0,0.12530012]
[1745724224443,0.6041683,94338.0,94337.0,0.12530012]
[1745724225350,0.6041683,94338.0,94337.0,0.00530012]
[1745724226652,0.211965,94325.0,94321.0,0.2119735]
[1745724227140,0.211965,94325.0,94324.0,0.1512]
[1745724227746,0.211965,94325.0,94324.0,0.12]
[1745724227941,0.244265,94325.0,94324.0,0.12]
[1745724228747,0.244265,94325.0,94324.0,0.3319672]
[1745724228943,0.244265,94325.0,94324.0,0.12]
[1745724229148,0.245265,94325.0,94324.0,0.12]
[1745724230148,0.245265,94325.0,94324.0,0.1811]
[1745724233963,0.245265,94325.0,94324.0,0.3930672]
[1745724241565,0.278065,94325.0,94324.0,0.3930672]
[1745724243674,0.212965,94325.0,94324.0,0.3930672]
[1745724244172,0.604665,94325.0,94324.0,0.3930672]
[1745724245772,0.243865,94325.0,94324.0,0.3930672]
[1745724245974,0.604665,94325.0,94324.0,0.3930672]
[1745724246468,0.3618,94325.0,94324.0,0.3930672]
[1745724252573,0.001,94325.0,94324.0,0.3930672]
[1745724254967,0.0335,94325.0,94324.0,0.3930672]
[1745724255375,0.001,94325.0,94324.0,0.3930672]
[1745724259079,0.25296843,94331.0,94330.0,0.2119537]
[1745724259281,0.04101633,94331.0,94330.0,0.2119537]
[1745724259673,0.25296783,94331.0,94330.0,0.2119537]
[1745724259967,0.25296783,94331.0,94330.0,0.2735537]
[1745724260170,0.25296783,94331.0,94330.0,0.3935537]
[1745724261269,0.25396783,94331.0,94330.0,0.3945537]
[1745724263889,0.04201633,94331.0,94330.0,0.3945537]
[1745724272589,0.0308,94331.0,94330.0,0.3945537]
[1745724282300,0.001,94331.0,94330.0,0.3945537]
[1745724287110,0.1512,94331.0,94330.0,0.2745537]
[1745724291311,0.1512,94331.0,94330.0,0.6353537]
[1745724292110,0.1512,94331.0,94330.0,0.2745537]
[1745724292311,0.1512,94331.0,94330.0,0.6353537]
[1745724293603,0.1512,94331.0,94330.0,0.2745537]
[1745724299319,0.1512,94331.0,94330.0,0.2431537]
[1745724300411,0.3631515,94331.0,94330.0,0.2129537]
[1745724301216,0.1512,94331.0,94330.0,0.2129537]
[1745724301916,0.1833,94331.0,94330.0,0.2129537]
[1745724314915,0.1833,94331.0,94330.0,0.2434537]
[1745724322216,0.1833,94331.0,94330.0,0.2129537]
[1745724322921,0.1833,94331.0,94330.0,0.2441537]
[1745724324718,0.1833,94331.0,94330.0,0.2745537]
[1745724329227,0.3952515,94331.0,94330.0,0.2745537]
[1745724329621,0.3952515,94331.0,94330.0,0.2441537]
[1745724331925,0.3952515,94331.0,94330.0,0.0322]
[1745724332127,0.2649696,94322.0,94321.0,0.2649587]
[1745724333221,0.3849696,94322.0,94321.0,0.2649587]
[1745724333526,0.3939696,94322.0,94321.0,0.2649587]
[1745724334023,0.4567696,94322.0,94321.0,0.2649587]
[1745724336718,0.4567696,94322.0,94321.0,0.2119656]
[1745724338632,0.4567696,94322.0,94310.0,0.00106033]
[1745724338633,0.0529968,94317.0,94310.0,0.00106033]
[1745724338831,0.2119942,94312.0,94311.0,0.2789925]
[1745724339130,0.3319942,94312.0,94311.0,0.2789925]
[1745724339829,0.3958942,94312.0,94311.0,0.2789925]
[1745724340033,0.4028942,94312.0,94311.0,0.2789925]
[1745724340631,0.4028942,94312.0,94307.0,0.05830281]
[1745724340632,0.1909,94312.0,94307.0,0.00530181]
[1745724340836,0.2120009,94309.0,94307.0,0.00530181]
[1745724341037,0.1059992,94311.0,94307.0,0.00530181]
[1745724341038,0.2120032,94308.0,94307.0,0.00530181]
[1745724341236,0.2429032,94308.0,94307.0,0.00530181]
[1745724342132,0.3629032,94308.0,94307.0,0.00530181]
[1745724342937,0.37066327,94308.0,94307.0,0.00530181]
[1745724343235,0.37166327,94308.0,94307.0,0.00530181]
[1745724343833,0.2120189,94301.0,94300.0,0.1]
[1745724344336,0.3320189,94301.0,94300.0,0.1]
[1745724344741,0.3925189,94301.0,94300.0,0.1]
[1745724346240,0.3935189,94301.0,94300.0,0.1]
[1745724352338,0.3935189,94301.0,94267.0,0.06696]
[1745724352339,0.2120639,94281.0,94267.0,0.06696]
[1745724352552,0.2120639,94281.0,94280.0,0.21312676]
[1745724352933,0.2750639,94281.0,94280.0,0.21312676]
[1745724353133,0.3950639,94281.0,94280.0,0.21312676]
[1745724353742,0.4020639,94281.0,94280.0,0.21312676]
[1745724354345,0.50813191,94281.0,94280.0,1e-08]
[1745724354534,0.265113,94271.0,94268.0,0.0530226]
[1745724354846,0.0959,94270.0,94269.0,0.2120909]
[1745724355041,0.3952886,94270.0,94269.0,0.2120909]
[1745724355240,0.3952886,94270.0,94269.0,0.3077909]
[1745724356034,0.3647886,94270.0,94269.0,0.3077909]
[1745724356435,0.3727886,94270.0,94269.0,0.3077909]
[1745724356941,0.2651242,94267.0,94266.0,0.2120965]
[1745724357140,0.2121066,94262.0,94261.0,0.5729051]
[1745724357543,0.2766066,94262.0,94261.0,0.5729051]
[1745724358141,0.2121134,94260.0,94259.0,0.2651416]
[1745724358541,0.2776134,94260.0,94259.0,0.2651416]
[1745724358743,0.2776134,94260.0,94259.0,0.2965416]
[1745724359141,0.3976134,94260.0,94259.0,0.2965416]
[1745724359649,0.4036134,94260.0,94259.0,0.2965416]
[1745724360248,0.41149369,94260.0,94259.0,0.2965416]
[1745724368855,0.37929369,94260.0,94259.0,0.2965416]
[1745724369346,0.13388029,94260.0,94259.0,0.2965416]
[1745724369743,0.126,94260.0,94259.0,0.2965416]
[1745724371049,0.126,94260.0,94259.0,0.6573416]
[1745724372141,0.006,94260.0,94259.0,0.6573416]
[1745724373149,0.006,94260.0,94259.0,0.2965416]
[1745724373150,0.126,94260.0,94259.0,0.2965416]
[1745724373352,0.126,94260.0,94259.0,0.6573416]
[1745724378243,0.34592026,94260.0,94259.0,0.3922]
[1745724378448,0.2121224,94257.0,94256.0,0.2121179]
[1745724378849,0.3034224,94257.0,94256.0,0.2121179]
[1745724379050,0.2113,94257.0,94256.0,0.2121179]
[1745724379856,0.2173,94257.0,94256.0,0.2121179]
[1745724381344,0.2193,94257.0,94256.0,0.2121179]
[1745724381845,0.1893,94257.0,94256.0,0.2121179]
[1745724382045,0.1893,94257.0,94256.0,0.2771179]
[1745724383248,0.1592,94257.0,94256.0,0.2771179]
[1745724385252,0.1592,94257.0,94256.0,0.6379179]
[1745724391565,0.1592,94257.0,94256.0,0.5729179]
[1745724392259,0.1592,94257.0,94256.0,0.2121179]
[1745724398067,0.1901,94257.0,94256.0,0.2121179]
[1745724401671,0.1901,94257.0,94256.0,0.2453179]
[1745724402567,0.1901,94257.0,94256.0,0.2121179]
[1745724407566,0.1901,94257.0,94256.0,0.2451179]
[1745724408365,0.1901,94257.0,94256.0,0.2121179]
[1745724412065,0.1901,94257.0,94256.0,0.2429179]
[1745724417177,0.1901,94257.0,94256.0,0.2121179]
[1745724420171,0.4022179,94257.0,94256.0,0.2121179]
[1745724422781,0.1901,94257.0,94256.0,0.2121179]
[1745724422979,0.4022179,94257.0,94256.0,0.2746179]
[1745724425683,0.4022179,94257.0,94256.0,0.2424179]
[1745724427983,0.4022179,94257.0,94256.0,0.2121179]
[1745724430182,0.4022179,94257.0,94256.0,0.2443179]
[1745724433074,0.4022179,94257.0,94256.0,0.2121179]
[1745724440488,0.2121314,94252.0,94251.0,0.2121296]
[1745724440788,0.2121314,94251.0,94250.0,0.001061]
[1745724440989,0.2121381,94248.0,94247.0,0.00530518]
[1745724441284,0.2121471,94245.0,94244.0,0.2121409]
[1745724441683,0.2743471,94245.0,94244.0,0.2121409]
[1745724442282,0.3943471,94245.0,94244.0,0.2121409]
[1745724442890,0.3953471,94245.0,94244.0,0.2121409]
[1745724446086,0.1832,94245.0,94244.0,0.2451409]
[1745724446284,0.1832,94245.0,94244.0,0.2781409]
[1745724446484,0.3953449,94245.0,94244.0,0.2781409]
[1745724449783,0.3953449,94245.0,94244.0,0.3098409]
[1745724454792,0.39518495,94245.0,94244.0,0.3098409]
[1745724456998,0.15244005,94245.0,94244.0,0.3098409]
[1745724462497,0.15244005,94245.0,94244.0,0.6706409]
[1745724465289,0.15244005,94245.0,94244.0,0.3098409]
[1745724465489,0.15244005,94245.0,94244.0,0.6706409]
[1745724471003,0.15244005,94245.0,94244.0,0.3098409]
[1745724471193,0.15244005,94245.0,94244.0,0.6706409]
[1745724473102,0.15244005,94245.0,94244.0,0.3098409]
[1745724473403,0.15244005,94245.0,94244.0,0.6706409]
[1745724473900,0.00780916,94260.0,94259.0,0.2121134]
[1745724474198,0.0317,94262.0,94261.0,0.2121089]
[1745724474404,0.2438066,94262.0,94261.0,0.2121089]
[1745724474598,0.0317,94262.0,94261.0,0.2121089]
[1745724475188,0.1517,94262.0,94261.0,0.2121089]
[1745724476295,0.1537,94262.0,94261.0,0.2775089]
[1745724476898,0.1527,94262.0,94261.0,0.2785089]
[1745724478198,0.1527,94262.0,94261.0,0.2775089]
[1745724478396,0.1527,94262.0,94261.0,0.2795089]
[1745724479802,0.1527,94262.0,94261.0,0.2467089]
[1745724480004,0.1527,94262.0,94261.0,0.2781089]
[1745724484604,0.1527,94262.0,94261.0,0.2467089]
[1745724489011,0.1527,94262.0,94261.0,0.2778089]
[1745724489507,0.121,94262.0,94261.0,0.2778089]
[1745724491209,0.001,94262.0,94261.0,0.2778089]
[1745724494217,0.121,94262.0,94261.0,0.2778089]
[1745724495115,0.121,94262.0,94261.0,0.6386089]
[1745724495905,0.121,94262.0,94261.0,0.7446969]
[1745724496107,0.0108317,94271.0,94270.0,0.2120886]
[1745724496300,0.0316,94275.0,94274.0,0.2120796]
[1745724496506,0.0329,94276.0,94275.0,0.2120774]
[1745724497101,0.1529,94276.0,94275.0,0.2120774]
[1745724498115,0.3659751,94276.0,94275.0,0.2130774]
[1745724498419,0.16479649,94276.0,94275.0,0.2130774]
[1745724508815,0.16479649,94276.0,94275.0,0.2764774]
[1745724509408,0.13189649,94276.0,94275.0,0.3069774]
[1745724510524,0.121,94276.0,94275.0,0.3069774]
[1745724511514,0.121,94276.0,94275.0,0.3738574]
[1745724516715,0.121,94276.0,94275.0,0.7346574]
[1745724517120,0.0052,94278.0,94277.0,0.2120729]
[1745724517315,0.0315,94284.0,94283.0,0.2120594]
[1745724517516,0.0315,94284.0,94283.0,0.5728594]
[1745724517517,0.04213415,94284.0,94283.0,0.5728594]
[1745724518217,0.16213415,94284.0,94283.0,0.6055594]
[1745724519520,0.16213415,94284.0,94283.0,0.6369594]
[1745724519822,0.16513415,94284.0,94283.0,0.6379594]
[1745724520415,0.16313415,94284.0,94283.0,0.6379594]
[1745724522622,0.16313415,94284.0,94283.0,0.7047994]
[1745724532230,0.16313415,94284.0,94283.0,0.3439994]
[1745724532427,0.16313415,94284.0,94283.0,0.7047994]
[1745724533627,0.16313415,94284.0,94283.0,0.3439994]
[1745724533821,0.16313415,94284.0,94283.0,0.7047994]
[1745724534029,0.16313415,94284.0,94283.0,0.3439994]
[1745724534326,0.16313415,94284.0,94283.0,0.7047994]
[1745724538630,0.1525,94284.0,94283.0,0.7047994]
[1745724539336,0.1525,94284.0,94283.0,0.6733994]
[1745724539733,0.16335221,94284.0,94283.0,0.6733994]
[1745724546236,0.16335221,94284.0,94283.0,0.3125994]
[1745724546437,0.16335221,94284.0,94283.0,0.6733994]
[1745724548646,0.16335221,94284.0,94283.0,0.3125994]
[1745724548842,0.16335221,94284.0,94283.0,0.6733994]
[1745724550137,0.1525,94284.0,94283.0,0.6733994]
[1745724551435,0.1525,94284.0,94283.0,0.3125994]
[1745724551636,0.1525,94284.0,94283.0,0.6733994]
[1745724553346,0.16344196,94284.0,94283.0,0.6733994]
[1745724553836,0.1525,94284.0,94283.0,0.6733994]
[1745724554938,0.1525,94284.0,94283.0,0.7055994]
[1745724558548,0.1525,94284.0,94283.0,0.3447994]
[1745724558751,0.1525,94284.0,94283.0,0.7055994]
[1745724559456,0.1525,94284.0,94283.0,0.3447994]
[1745724559646,0.1525,94284.0,94283.0,0.7055994]
[1745724561255,0.1525,94284.0,94283.0,0.6733994]
[1745724563158,0.1525,94284.0,94283.0,0.3125994]
[1745724566549,0.1525,94284.0,94283.0,0.6733994]
[1745724568949,0.1525,94284.0,94283.0,0.3125994]
[1745724569153,0.1525,94284.0,94283.0,0.6733994]
[1745724584167,0.1525,94284.0,94283.0,0.3125994]
[1745724584370,0.1525,94284.0,94283.0,0.6733994]
[1745724587259,0.1525,94284.0,94283.0,0.3125994]
[1745724587563,0.1525,94284.0,94283.0,0.6733994]
[1745724587764,0.1525,94284.0,94283.0,0.7057994]
[1745724589656,0.121,94284.0,94283.0,0.7057994]
[1745724589857,0.0737183,94284.0,94283.0,0.7057994]
[1745724594271,0.0737183,94284.0,94283.0,1.0665994]
[1745724597374,0.0737183,94284.0,94283.0,0.3449994]
[1745724597578,0.0737183,94284.0,94283.0,1.0665994]
[1745724601675,0.1068183,94284.0,94283.0,1.0665994]
[1745724603673,0.1068183,94284.0,94283.0,0.7057994]
[1745724604378,0.0455862,94284.0,94283.0,0.7057994]
[1745724613479,0.0323,94299.0,94298.0,0.2120257]
[1745724614172,0.1523,94299.0,94298.0,0.2120257]